[Event "Titled Tuesday Blitz March 08 Late 2022"]
[White "Prohorov, Olexandr"]
[Black "Martin Barcelo, Carles"]
[WhiteFideId "14105578"]
[BlackFideId "24561444"]
[WhiteElo "1993"]
[BlackElo "1875"]
[Result "0-1"]
[Round "07"]
[TimeControl "180+1"]
[Date "2022.03.09"]
[WhiteClock "0:01:33"]
[BlackClock "0:00:49"]

1. Nf3 {[%clk 0:03:00]}  Nf6 {[%clk 0:02:56]} 2. d4 {[%clk 0:03:00]}  g6 {[%clk 0:02:53]} 3. Bg5 {[%clk 0:03:00]}  Bg7 {[%clk 0:02:53]} 4. e3 {[%clk 0:03:00]}  O-O {[%clk 0:02:52]} 5. Nbd2 {[%clk 0:03:00]}  c5 {[%clk 0:02:45]} 6. c3 {[%clk 0:03:00]}  d6 {[%clk 0:02:42]} 7. Be2 {[%clk 0:02:58]}  b6 {[%clk 0:02:42]} 8. O-O {[%clk 0:02:58]}  Bb7 {[%clk 0:02:43]} 9. a4 {[%clk 0:02:57]}  a6 {[%clk 0:02:42]} 10. b4 {[%clk 0:02:46]}  Nbd7 {[%clk 0:02:41]} 11. Qb3 {[%clk 0:02:45]}  Qc7 {[%clk 0:02:11]} 12. Rab1 {[%clk 0:02:40]}  Ne4 {[%clk 0:01:48]} 13. Bxe7 {[%clk 0:02:34]}  Rfe8 {[%clk 0:01:35]} 14. Bh4 {[%clk 0:02:33]}  Rac8 {[%clk 0:01:32]} 15. Rfc1 {[%clk 0:02:32]}  cxd4 {[%clk 0:01:16]} 16. cxd4 {[%clk 0:01:58]}  Qxc1+ {[%clk 0:01:16]} 17. Rxc1 {[%clk 0:01:59]}  Rxc1+ {[%clk 0:01:16]} 18. Nf1 {[%clk 0:01:57]}  Rec8 {[%clk 0:01:15]} 19. h3 {[%clk 0:01:46]}  R8c3 {[%clk 0:01:02]} 20. Qb2 {[%clk 0:01:36]}  R3c2 {[%clk 0:00:48]} 21. Qa3 {[%clk 0:01:34]}  Rc3 {[%clk 0:00:48]} 22. Qb2 {[%clk 0:01:33]}  R1c2 {[%clk 0:00:49]} 0-1


[Site "https://www.chess.com"]

[Event "Titled Tuesday Blitz March 08 Late 2022"]
[White "Rastbod, Ali"]
[Black "Derige Kane, Yan"]
[WhiteFideId "12567477"]
[BlackFideId "20665431"]
[WhiteElo "2200"]
[BlackElo "2169"]
[Result "1-0"]
[Round "07"]
[TimeControl "180+1"]
[Date "2022.03.09"]
[WhiteClock "0:00:08"]
[BlackClock "0:00:11"]

1. c4 {[%clk 0:02:59]}  c5 {[%clk 0:02:38]} 2. Nc3 {[%clk 0:02:58]}  Nf6 {[%clk 0:02:00]} 3. g3 {[%clk 0:02:50]}  d5 {[%clk 0:02:00]} 4. cxd5 {[%clk 0:02:51]}  Nxd5 {[%clk 0:02:01]} 5. Bg2 {[%clk 0:02:52]}  Nc7 {[%clk 0:02:01]} 6. Qa4+ {[%clk 0:02:51]}  Bd7 {[%clk 0:02:00]} 7. Qb3 {[%clk 0:02:51]}  Bc6 {[%clk 0:01:58]} 8. Bxc6+ {[%clk 0:02:50]}  Nxc6 {[%clk 0:01:59]} 9. Qxb7 {[%clk 0:02:48]}  Nd4 {[%clk 0:01:59]} 10. Qe4 {[%clk 0:02:45]}  f5 {[%clk 0:01:59]} 11. Qb1 {[%clk 0:02:42]}  e6 {[%clk 0:01:59]} 12. d3 {[%clk 0:02:10]}  Be7 {[%clk 0:01:58]} 13. e3 {[%clk 0:02:10]}  Nc6 {[%clk 0:01:58]} 14. a3 {[%clk 0:02:10]}  Na5 {[%clk 0:01:55]} 15. Qc2 {[%clk 0:02:09]}  Rb8 {[%clk 0:01:55]} 16. Bd2 {[%clk 0:02:07]}  Nb3 {[%clk 0:01:54]} 17. Rd1 {[%clk 0:02:07]}  O-O {[%clk 0:01:54]} 18. Nf3 {[%clk 0:02:05]}  Qe8 {[%clk 0:01:51]} 19. O-O {[%clk 0:02:01]}  Qh5 {[%clk 0:01:51]} 20. Kg2 {[%clk 0:02:00]}  g5 {[%clk 0:01:51]} 21. Ne5 {[%clk 0:01:50]}  Qe8 {[%clk 0:01:45]} 22. Be1 {[%clk 0:01:43]}  Bf6 {[%clk 0:01:44]} 23. Nc4 {[%clk 0:01:43]}  Qc6+ {[%clk 0:01:41]} 24. Kg1 {[%clk 0:01:42]}  g4 {[%clk 0:01:36]} 25. Ne2 {[%clk 0:01:41]}  e5 {[%clk 0:01:35]} 26. Na5 {[%clk 0:01:35]}  Nxa5 {[%clk 0:01:32]} 27. Bxa5 {[%clk 0:01:36]}  Ne6 {[%clk 0:01:32]} 28. b4 {[%clk 0:01:34]}  Ng5 {[%clk 0:01:32]} 29. e4 {[%clk 0:01:16]}  Be7 {[%clk 0:01:18]} 30. Qc4+ {[%clk 0:01:07]}  Kh8 {[%clk 0:01:18]} 31. Nc3 {[%clk 0:01:06]}  Qh6 {[%clk 0:01:12]} 32. h4 {[%clk 0:01:01]}  gxh3 {[%clk 0:01:12]} 33. exf5 {[%clk 0:00:48]}  cxb4 {[%clk 0:01:02]} 34. Ne4 {[%clk 0:00:44]}  Nf3+ {[%clk 0:00:47]} 35. Kh1 {[%clk 0:00:44]}  bxa3 {[%clk 0:00:48]} 36. Qc7 {[%clk 0:00:33]}  Rbe8 {[%clk 0:00:41]} 37. Bc3 {[%clk 0:00:29]}  Qh5 {[%clk 0:00:37]} 38. Bxe5+ {[%clk 0:00:26]}  Nxe5 {[%clk 0:00:36]} 39. Qxe5+ {[%clk 0:00:27]}  Bf6 {[%clk 0:00:37]} 40. Qf4 {[%clk 0:00:26]}  Be5 {[%clk 0:00:36]} 41. Qe3 {[%clk 0:00:21]}  Rxf5 {[%clk 0:00:24]} 42. f4 {[%clk 0:00:20]}  Bg7 {[%clk 0:00:20]} 43. Qxa7 {[%clk 0:00:16]}  Qe2 {[%clk 0:00:17]} 44. Rd2 {[%clk 0:00:17]}  Qg4 {[%clk 0:00:12]} 45. Qxa3 {[%clk 0:00:12]}  Rd5 {[%clk 0:00:10]} 46. Qa4 {[%clk 0:00:07]}  Rd4 {[%clk 0:00:10]} 47. Qxe8+ {[%clk 0:00:07]}  Bf8 {[%clk 0:00:10]} 48. Qxf8+ {[%clk 0:00:07]}  Qg8 {[%clk 0:00:11]} 49. Qxg8+ {[%clk 0:00:07]}  Kxg8 {[%clk 0:00:12]} 50. Kh2 {[%clk 0:00:07]}  h5 {[%clk 0:00:11]} 51. Kxh3 {[%clk 0:00:08]} 1-0


[Site "https://www.chess.com"]

[Event "Titled Tuesday Blitz March 08 Late 2022"]
[White "Riehle, Marco"]
[Black "Keymer, Vincent"]
[WhiteFideId "12904392"]
[BlackFideId "12940690"]
[WhiteElo "2462"]
[BlackElo "2557"]
[Result "0-1"]
[Round "07"]
[TimeControl "180+1"]
[Date "2022.03.08"]
[WhiteClock "0:00:38"]
[BlackClock "0:00:22"]

1. e4 {[%clk 0:03:00]}  c5 {[%clk 0:03:00]} 2. a3 {[%clk 0:03:00]}  d5 {[%clk 0:02:55]} 3. exd5 {[%clk 0:02:59]}  Nf6 {[%clk 0:02:55]} 4. Nf3 {[%clk 0:02:59]}  Nxd5 {[%clk 0:02:54]} 5. c4 {[%clk 0:02:59]}  Nf6 {[%clk 0:02:50]} 6. d4 {[%clk 0:03:00]}  cxd4 {[%clk 0:02:51]} 7. Qxd4 {[%clk 0:03:01]}  Bd7 {[%clk 0:02:47]} 8. Nc3 {[%clk 0:02:57]}  Nc6 {[%clk 0:02:47]} 9. Qh4 {[%clk 0:02:54]}  Bg4 {[%clk 0:02:45]} 10. Be3 {[%clk 0:02:40]}  e6 {[%clk 0:02:26]} 11. Be2 {[%clk 0:02:24]}  Be7 {[%clk 0:02:24]} 12. Rd1 {[%clk 0:02:18]}  Qc8 {[%clk 0:02:23]} 13. O-O {[%clk 0:02:10]}  O-O {[%clk 0:02:23]} 14. Qg3 {[%clk 0:02:07]}  Bf5 {[%clk 0:01:59]} 15. Nd4 {[%clk 0:01:55]}  Nxd4 {[%clk 0:01:53]} 16. Bxd4 {[%clk 0:01:56]}  Bg6 {[%clk 0:01:38]} 17. h3 {[%clk 0:01:45]}  Rd8 {[%clk 0:01:37]} 18. b4 {[%clk 0:01:36]}  a5 {[%clk 0:01:06]} 19. c5 {[%clk 0:01:30]}  axb4 {[%clk 0:01:05]} 20. axb4 {[%clk 0:01:31]}  Ra3 {[%clk 0:01:05]} 21. Be5 {[%clk 0:01:13]}  Ne4 {[%clk 0:00:40]} 22. Nd5 {[%clk 0:00:39]}  Nxg3 {[%clk 0:00:37]} 23. Nxe7+ {[%clk 0:00:39]}  Kf8 {[%clk 0:00:32]} 24. Nxc8 {[%clk 0:00:39]}  Nxe2+ {[%clk 0:00:32]} 25. Kh2 {[%clk 0:00:39]}  Rxc8 {[%clk 0:00:33]} 26. Rd7 {[%clk 0:00:38]}  Be4 {[%clk 0:00:22]} 0-1


[Site "https://www.chess.com"]

[Event "Titled Tuesday Blitz March 08 Late 2022"]
[White "Rorrer, Grayson"]
[Black "Kim, Sergey"]
[WhiteFideId "30944996"]
[BlackFideId "13700570"]
[WhiteElo "2122"]
[BlackElo "2553"]
[Result "1-0"]
[Round "07"]
[TimeControl "180+1"]
[Date "2022.03.08"]
[WhiteClock "0:01:01"]
[BlackClock "0:01:14"]

1. e4 {[%clk 0:02:58]}  e5 {[%clk 0:02:56]} 2. Nc3 {[%clk 0:02:57]}  Nf6 {[%clk 0:02:55]} 3. d4 {[%clk 0:02:57]}  exd4 {[%clk 0:02:52]} 4. Qxd4 {[%clk 0:02:58]}  Nc6 {[%clk 0:02:52]} 5. Qd3 {[%clk 0:02:59]}  Bb4 {[%clk 0:02:50]} 6. Bd2 {[%clk 0:02:59]}  O-O {[%clk 0:02:50]} 7. O-O-O {[%clk 0:02:59]}  Re8 {[%clk 0:02:50]} 8. Nge2 {[%clk 0:02:59]}  d6 {[%clk 0:02:49]} 9. Bg5 {[%clk 0:02:59]}  h6 {[%clk 0:02:48]} 10. Bxf6 {[%clk 0:03:00]}  Qxf6 {[%clk 0:02:46]} 11. Nd5 {[%clk 0:03:01]}  Qd8 {[%clk 0:02:45]} 12. Nxb4 {[%clk 0:03:01]}  Nxb4 {[%clk 0:02:44]} 13. Qd2 {[%clk 0:03:02]}  Nc6 {[%clk 0:02:38]} 14. Nc3 {[%clk 0:03:01]}  Be6 {[%clk 0:02:34]} 15. f4 {[%clk 0:03:01]}  a6 {[%clk 0:02:26]} 16. h3 {[%clk 0:03:00]}  b5 {[%clk 0:02:24]} 17. g4 {[%clk 0:03:00]}  b4 {[%clk 0:02:21]} 18. Nd5 {[%clk 0:02:58]}  Bxd5 {[%clk 0:02:19]} 19. exd5 {[%clk 0:02:59]}  Ne7 {[%clk 0:02:15]} 20. g5 {[%clk 0:02:40]}  hxg5 {[%clk 0:02:08]} 21. fxg5 {[%clk 0:02:38]}  Ng6 {[%clk 0:02:07]} 22. h4 {[%clk 0:02:37]}  Ne5 {[%clk 0:02:06]} 23. Be2 {[%clk 0:02:28]}  a5 {[%clk 0:02:03]} 24. Rdf1 {[%clk 0:02:29]}  Qd7 {[%clk 0:01:58]} 25. h5 {[%clk 0:02:21]}  Reb8 {[%clk 0:01:54]} 26. g6 {[%clk 0:02:17]}  a4 {[%clk 0:01:50]} 27. gxf7+ {[%clk 0:02:06]}  Nxf7 {[%clk 0:01:49]} 28. Bd3 {[%clk 0:01:50]}  b3 {[%clk 0:01:44]} 29. a3 {[%clk 0:01:45]}  bxc2 {[%clk 0:01:38]} 30. Rhg1 {[%clk 0:01:10]}  Kh8 {[%clk 0:01:22]} 31. Qg2 {[%clk 0:01:03]}  Nh6 {[%clk 0:01:14]} 32. Qg6 {[%clk 0:01:01]} 1-0


[Site "https://www.chess.com"]

[Event "Titled Tuesday Blitz March 08 Late 2022"]
[White "Rustemov, Alexander"]
[Black "Kopczynski, Michal"]
[WhiteFideId "4119002"]
[BlackFideId "1124200"]
[WhiteElo "2747"]
[BlackElo "2235"]
[Result "1-0"]
[Round "07"]
[TimeControl "180+1"]
[Date "2022.03.09"]
[WhiteClock "0:01:10"]
[BlackClock "0:00:19"]

1. d4 {[%clk 0:03:00]}  Nf6 {[%clk 0:02:59]} 2. c4 {[%clk 0:03:00]}  g6 {[%clk 0:03:00]} 3. Nf3 {[%clk 0:02:59]}  Bg7 {[%clk 0:03:00]} 4. g3 {[%clk 0:02:59]}  d6 {[%clk 0:03:01]} 5. Bg2 {[%clk 0:02:58]}  O-O {[%clk 0:03:01]} 6. Nc3 {[%clk 0:02:58]}  Nc6 {[%clk 0:03:02]} 7. O-O {[%clk 0:02:58]}  Nd7 {[%clk 0:03:02]} 8. Be3 {[%clk 0:02:42]}  e5 {[%clk 0:03:02]} 9. Rc1 {[%clk 0:02:33]}  h6 {[%clk 0:02:57]} 10. Qd2 {[%clk 0:02:32]}  Kh7 {[%clk 0:02:56]} 11. Rfd1 {[%clk 0:02:31]}  f5 {[%clk 0:02:52]} 12. dxe5 {[%clk 0:02:28]}  Ndxe5 {[%clk 0:02:53]} 13. Nxe5 {[%clk 0:02:20]}  Nxe5 {[%clk 0:02:52]} 14. b3 {[%clk 0:02:15]}  Ng4 {[%clk 0:02:40]} 15. Bd4 {[%clk 0:02:14]}  Qg5 {[%clk 0:02:22]} 16. f4 {[%clk 0:01:59]}  Bxd4+ {[%clk 0:02:03]} 17. Qxd4 {[%clk 0:01:58]}  Qf6 {[%clk 0:02:04]} 18. Nd5 {[%clk 0:01:48]}  Qxd4+ {[%clk 0:02:02]} 19. Rxd4 {[%clk 0:01:49]}  Rf7 {[%clk 0:02:01]} 20. h3 {[%clk 0:01:49]}  Nf6 {[%clk 0:01:59]} 21. Nxf6+ {[%clk 0:01:44]}  Rxf6 {[%clk 0:02:00]} 22. c5 {[%clk 0:01:44]}  dxc5 {[%clk 0:01:49]} 23. Rxc5 {[%clk 0:01:44]}  c6 {[%clk 0:01:46]} 24. Rd8 {[%clk 0:01:43]}  Kg7 {[%clk 0:01:44]} 25. Re5 {[%clk 0:01:41]}  Rf8 {[%clk 0:01:36]} 26. Ree8 {[%clk 0:01:33]}  Rxe8 {[%clk 0:01:29]} 27. Rxe8 {[%clk 0:01:34]}  Kf7 {[%clk 0:01:11]} 28. Rh8 {[%clk 0:01:33]}  h5 {[%clk 0:01:00]} 29. Kf2 {[%clk 0:01:28]}  a5 {[%clk 0:00:56]} 30. a3 {[%clk 0:01:21]}  Ke7 {[%clk 0:00:46]} 31. Ke3 {[%clk 0:01:20]}  Kd6 {[%clk 0:00:44]} 32. Rg8 {[%clk 0:01:18]}  b5 {[%clk 0:00:28]} 33. Rxg6+ {[%clk 0:01:16]}  Be6 {[%clk 0:00:28]} 34. Bxc6 {[%clk 0:01:11]}  Rb8 {[%clk 0:00:22]} 35. Kd4 {[%clk 0:01:10]}  Rb6 {[%clk 0:00:19]} 36. Bd5 {[%clk 0:01:10]} 1-0


[Site "https://www.chess.com"]

[Event "Titled Tuesday Blitz March 08 Late 2022"]
[White "Spitzl, Vinzent"]
[Black "Maltsevskaya, Aleksandra"]
[WhiteFideId "12901253"]
[BlackFideId "24174041"]
[WhiteElo "2160"]
[BlackElo "2241"]
[Result "0-1"]
[Round "07"]
[TimeControl "180+1"]
[Date "2022.03.09"]
[WhiteClock "0:00:28"]
[BlackClock "0:01:10"]

1. e4 {[%clk 0:03:00]}  c5 {[%clk 0:02:57]} 2. Nf3 {[%clk 0:03:00]}  e6 {[%clk 0:02:58]} 3. d4 {[%clk 0:02:59]}  cxd4 {[%clk 0:02:59]} 4. Nxd4 {[%clk 0:03:00]}  Nf6 {[%clk 0:03:00]} 5. Bd3 {[%clk 0:02:55]}  Nc6 {[%clk 0:02:57]} 6. Nxc6 {[%clk 0:02:54]}  bxc6 {[%clk 0:02:58]} 7. O-O {[%clk 0:02:53]}  d5 {[%clk 0:02:58]} 8. Nc3 {[%clk 0:02:50]}  Be7 {[%clk 0:02:58]} 9. Re1 {[%clk 0:02:50]}  a5 {[%clk 0:02:56]} 10. Bg5 {[%clk 0:02:50]}  O-O {[%clk 0:02:54]} 11. e5 {[%clk 0:02:45]}  Nd7 {[%clk 0:02:52]} 12. Bxe7 {[%clk 0:02:44]}  Qxe7 {[%clk 0:02:53]} 13. f4 {[%clk 0:02:37]}  g6 {[%clk 0:02:52]} 14. Kh1 {[%clk 0:02:34]}  Rb8 {[%clk 0:02:44]} 15. b3 {[%clk 0:02:33]}  c5 {[%clk 0:02:43]} 16. f5 {[%clk 0:02:18]}  exf5 {[%clk 0:02:37]} 17. Nxd5 {[%clk 0:02:14]}  Qh4 {[%clk 0:02:36]} 18. Bc4 {[%clk 0:01:53]}  Bb7 {[%clk 0:02:22]} 19. e6 {[%clk 0:01:46]}  fxe6 {[%clk 0:01:45]} 20. Nc7 {[%clk 0:01:45]}  Nf6 {[%clk 0:01:40]} 21. Nxe6 {[%clk 0:01:33]}  Ng4 {[%clk 0:01:38]} 22. Nxf8+ {[%clk 0:01:28]}  Kh8 {[%clk 0:01:38]} 23. Qd6 {[%clk 0:01:04]}  f4 {[%clk 0:01:13]} 24. Qxf4 {[%clk 0:00:56]}  Nf2+ {[%clk 0:01:11]} 25. Qxf2 {[%clk 0:00:29]}  Qxf2 {[%clk 0:01:12]} 26. Re2 {[%clk 0:00:28]}  Bxg2# {[%clk 0:01:10]} 0-1


[Site "https://www.chess.com"]

[Event "Titled Tuesday Blitz March 08 Late 2022"]
[White "Stoleriu, George"]
[Black "Chernomordik, Pavel"]
[WhiteFideId "1227505"]
[BlackFideId "2804530"]
[WhiteElo "2203"]
[BlackElo "2249"]
[Result "1-0"]
[Round "07"]
[TimeControl "180+1"]
[Date "2022.03.09"]
[WhiteClock "0:00:05"]
[BlackClock "0:00:21"]

1. e4 {[%clk 0:02:57]}  g6 {[%clk 0:03:00]} 2. d4 {[%clk 0:02:57]}  Bg7 {[%clk 0:03:00]} 3. Nc3 {[%clk 0:02:58]}  d6 {[%clk 0:02:59]} 4. Be3 {[%clk 0:02:58]}  a6 {[%clk 0:02:59]} 5. Qd2 {[%clk 0:02:58]}  b5 {[%clk 0:02:58]} 6. Bd3 {[%clk 0:02:57]}  Bb7 {[%clk 0:02:57]} 7. f3 {[%clk 0:02:57]}  Nd7 {[%clk 0:02:57]} 8. Nce2 {[%clk 0:02:58]}  c5 {[%clk 0:02:53]} 9. c3 {[%clk 0:02:59]}  Qc7 {[%clk 0:02:52]} 10. h4 {[%clk 0:02:59]}  h6 {[%clk 0:02:51]} 11. Nh3 {[%clk 0:02:57]}  Ngf6 {[%clk 0:02:47]} 12. Nf2 {[%clk 0:02:50]}  e5 {[%clk 0:02:41]} 13. d5 {[%clk 0:02:47]}  c4 {[%clk 0:02:39]} 14. Bc2 {[%clk 0:02:48]}  Nc5 {[%clk 0:02:39]} 15. b4 {[%clk 0:02:33]}  cxb3 {[%clk 0:02:27]} 16. axb3 {[%clk 0:02:34]}  Nh5 {[%clk 0:02:26]} 17. g4 {[%clk 0:02:11]}  Nf4 {[%clk 0:02:23]} 18. Nxf4 {[%clk 0:02:11]}  exf4 {[%clk 0:02:23]} 19. Bd4 {[%clk 0:02:12]}  Be5 {[%clk 0:02:21]} 20. g5 {[%clk 0:02:05]}  hxg5 {[%clk 0:02:13]} 21. Ng4 {[%clk 0:01:31]}  Nd7 {[%clk 0:02:03]} 22. Ke2 {[%clk 0:01:08]}  gxh4 {[%clk 0:01:59]} 23. Nf2 {[%clk 0:00:57]}  Rc8 {[%clk 0:01:55]} 24. Bd3 {[%clk 0:00:51]}  Nf6 {[%clk 0:01:40]} 25. Bxe5 {[%clk 0:00:45]}  dxe5 {[%clk 0:01:38]} 26. c4 {[%clk 0:00:46]}  Nh5 {[%clk 0:01:33]} 27. Rhc1 {[%clk 0:00:38]}  Ng3+ {[%clk 0:01:31]} 28. Ke1 {[%clk 0:00:36]}  b4 {[%clk 0:01:27]} 29. c5 {[%clk 0:00:16]}  h3 {[%clk 0:01:16]} 30. Nxh3 {[%clk 0:00:16]}  Rxh3 {[%clk 0:01:15]} 31. Qf2 {[%clk 0:00:15]}  Rh1+ {[%clk 0:01:05]} 32. Kd2 {[%clk 0:00:15]}  Rxc1 {[%clk 0:01:03]} 33. Rxc1 {[%clk 0:00:16]}  Qa5 {[%clk 0:01:03]} 34. c6 {[%clk 0:00:14]}  Ba8 {[%clk 0:00:54]} 35. Qa7 {[%clk 0:00:14]}  Qc7 {[%clk 0:00:53]} 36. Qc5 {[%clk 0:00:14]}  Rd8 {[%clk 0:00:48]} 37. Bxa6 {[%clk 0:00:14]}  f5 {[%clk 0:00:46]} 38. Bd3 {[%clk 0:00:10]}  Kf7 {[%clk 0:00:44]} 39. Ra1 {[%clk 0:00:07]}  Bxc6 {[%clk 0:00:36]} 40. Ra7 {[%clk 0:00:06]}  Qxa7 {[%clk 0:00:28]} 41. Qxa7+ {[%clk 0:00:07]}  Bd7 {[%clk 0:00:28]} 42. Qc7 {[%clk 0:00:07]}  Ke8 {[%clk 0:00:26]} 43. Qxe5+ {[%clk 0:00:08]}  Kf7 {[%clk 0:00:26]} 44. Qxf4 {[%clk 0:00:07]}  Nh5 {[%clk 0:00:26]} 45. Qc7 {[%clk 0:00:08]}  Ke8 {[%clk 0:00:25]} 46. d6 {[%clk 0:00:05]}  Rc8 {[%clk 0:00:24]} 47. Qb7 {[%clk 0:00:05]}  f4 {[%clk 0:00:23]} 48. Bb5 {[%clk 0:00:05]}  Nf6 {[%clk 0:00:21]} 49. Bxd7+ {[%clk 0:00:05]} 1-0


[Site "https://www.chess.com"]

[Event "Titled Tuesday Blitz March 08 Late 2022"]
[White "Svane, Rasmus"]
[Black "Holt, Conrad"]
[WhiteFideId "4657101"]
[BlackFideId "2034387"]
[WhiteElo "2645"]
[BlackElo "2586"]
[Result "1/2-1/2"]
[Round "07"]
[TimeControl "180+1"]
[Date "2022.03.08"]
[WhiteClock "0:00:03"]
[BlackClock "0:00:05"]

1. Nf3 {[%clk 0:03:00]}  d5 {[%clk 0:03:00]} 2. g3 {[%clk 0:03:01]}  Bg4 {[%clk 0:02:59]} 3. Bg2 {[%clk 0:03:01]}  Nd7 {[%clk 0:02:58]} 4. O-O {[%clk 0:03:02]}  e6 {[%clk 0:02:58]} 5. h3 {[%clk 0:03:02]}  Bxf3 {[%clk 0:02:58]} 6. Bxf3 {[%clk 0:03:03]}  Bd6 {[%clk 0:02:56]} 7. d3 {[%clk 0:03:02]}  Ngf6 {[%clk 0:02:55]} 8. e4 {[%clk 0:03:03]}  O-O {[%clk 0:02:51]} 9. Nd2 {[%clk 0:03:01]}  c6 {[%clk 0:02:49]} 10. Bg2 {[%clk 0:02:59]}  Qb6 {[%clk 0:02:48]} 11. Kh1 {[%clk 0:02:57]}  Rad8 {[%clk 0:02:43]} 12. Qe2 {[%clk 0:02:56]}  Rfe8 {[%clk 0:02:41]} 13. a4 {[%clk 0:02:53]}  e5 {[%clk 0:02:33]} 14. Nb3 {[%clk 0:02:50]}  Qa6 {[%clk 0:02:28]} 15. Qf3 {[%clk 0:02:43]}  h6 {[%clk 0:02:21]} 16. Bd2 {[%clk 0:02:41]}  dxe4 {[%clk 0:02:06]} 17. dxe4 {[%clk 0:02:42]}  c5 {[%clk 0:02:06]} 18. Bc3 {[%clk 0:02:23]}  Nf8 {[%clk 0:01:31]} 19. Rfd1 {[%clk 0:02:22]}  b6 {[%clk 0:01:13]} 20. Bd2 {[%clk 0:02:06]}  c4 {[%clk 0:01:05]} 21. Nc1 {[%clk 0:02:05]}  Bc5 {[%clk 0:01:00]} 22. Ne2 {[%clk 0:02:00]}  Rd6 {[%clk 0:00:57]} 23. Nc3 {[%clk 0:01:18]}  Red8 {[%clk 0:00:52]} 24. Be1 {[%clk 0:01:18]}  Ne6 {[%clk 0:00:40]} 25. Rxd6 {[%clk 0:01:12]}  Rxd6 {[%clk 0:00:40]} 26. Nb5 {[%clk 0:01:12]}  Nd4 {[%clk 0:00:38]} 27. Nxd4 {[%clk 0:01:10]}  Bxd4 {[%clk 0:00:31]} 28. c3 {[%clk 0:00:59]}  Bc5 {[%clk 0:00:30]} 29. Bf1 {[%clk 0:00:59]}  Qb7 {[%clk 0:00:23]} 30. Bxc4 {[%clk 0:00:59]}  Nxe4 {[%clk 0:00:17]} 31. Bxf7+ {[%clk 0:00:18]}  Qxf7 {[%clk 0:00:18]} 32. Qxe4 {[%clk 0:00:18]}  Bxf2 {[%clk 0:00:18]} 33. Kg2 {[%clk 0:00:15]}  Rf6 {[%clk 0:00:12]} 34. Qa8+ {[%clk 0:00:10]}  Kh7 {[%clk 0:00:13]} 35. Qe4+ {[%clk 0:00:11]}  Kg8 {[%clk 0:00:13]} 36. Qa8+ {[%clk 0:00:11]}  Kh7 {[%clk 0:00:13]} 37. Qe4+ {[%clk 0:00:11]}  g6 {[%clk 0:00:13]} 38. Qe2 {[%clk 0:00:03]}  Bc5 {[%clk 0:00:13]} 39. b4 {[%clk 0:00:03]}  Qd5+ {[%clk 0:00:12]} 40. Kh2 {[%clk 0:00:03]}  Bd6 {[%clk 0:00:10]} 41. Rd1 {[%clk 0:00:04]}  Qf7 {[%clk 0:00:10]} 42. Qe4 {[%clk 0:00:03]}  Bc7 {[%clk 0:00:07]} 43. Kg2 {[%clk 0:00:04]}  Rd6 {[%clk 0:00:06]} 44. Rxd6 {[%clk 0:00:03]}  Bxd6 {[%clk 0:00:07]} 45. Bf2 {[%clk 0:00:04]}  Qd7 {[%clk 0:00:04]} 46. h4 {[%clk 0:00:04]}  h5 {[%clk 0:00:03]} 47. Qd5 {[%clk 0:00:05]}  Qe7 {[%clk 0:00:03]} 48. a5 {[%clk 0:00:05]}  e4 {[%clk 0:00:03]} 49. Be3 {[%clk 0:00:05]}  bxa5 {[%clk 0:00:03]} 50. Qxa5 {[%clk 0:00:05]}  Qe6 {[%clk 0:00:02]} 51. Qxa7+ {[%clk 0:00:05]}  Kg8 {[%clk 0:00:03]} 52. Qa8+ {[%clk 0:00:05]}  Kf7 {[%clk 0:00:03]} 53. Qa7+ {[%clk 0:00:05]}  Kg8 {[%clk 0:00:04]} 54. Bd4 {[%clk 0:00:05]}  Bf8 {[%clk 0:00:03]} 55. Qa8 {[%clk 0:00:05]}  Qf5 {[%clk 0:00:03]} 56. Bc5 {[%clk 0:00:03]}  Qf3+ {[%clk 0:00:03]} 57. Kh2 {[%clk 0:00:03]}  Qe2+ {[%clk 0:00:04]} 58. Kg1 {[%clk 0:00:03]}  Qe1+ {[%clk 0:00:04]} 59. Kg2 {[%clk 0:00:03]}  Qe2+ {[%clk 0:00:04]} 60. Kg1 {[%clk 0:00:02]}  Qe1+ {[%clk 0:00:04]} 61. Kg2 {[%clk 0:00:02]}  Qe2+ {[%clk 0:00:05]} 62. Kg1 {[%clk 0:00:03]} 1/2-1/2


[Site "https://www.chess.com"]

[Event "Titled Tuesday Blitz March 08 Late 2022"]
[White "Sztokbant, Bernardo Vainzoff"]
[Black "Nikologorsky, Matfei"]
[WhiteFideId "2115956"]
[BlackFideId "24102474"]
[WhiteElo "2237"]
[BlackElo "2231"]
[Result "0-1"]
[Round "07"]
[TimeControl "180+1"]
[Date "2022.03.09"]
[WhiteClock "0:01:47"]
[BlackClock "0:01:27"]

1. e4 {[%clk 0:03:00]}  c5 {[%clk 0:02:59]} 2. Nf3 {[%clk 0:02:58]}  e6 {[%clk 0:02:59]} 3. d4 {[%clk 0:02:59]}  cxd4 {[%clk 0:02:59]} 4. Nxd4 {[%clk 0:03:00]}  a6 {[%clk 0:02:59]} 5. Nc3 {[%clk 0:03:00]}  Qc7 {[%clk 0:02:57]} 6. Bd3 {[%clk 0:03:00]}  Nc6 {[%clk 0:02:57]} 7. Nxc6 {[%clk 0:03:00]}  dxc6 {[%clk 0:02:57]} 8. O-O {[%clk 0:02:59]}  Nf6 {[%clk 0:02:57]} 9. f4 {[%clk 0:02:56]}  e5 {[%clk 0:02:57]} 10. fxe5 {[%clk 0:02:51]}  Ng4 {[%clk 0:02:56]} 11. Qe2 {[%clk 0:02:41]}  Nxe5 {[%clk 0:02:46]} 12. Bf4 {[%clk 0:02:40]}  Bd6 {[%clk 0:02:42]} 13. Rad1 {[%clk 0:02:30]}  O-O {[%clk 0:02:37]} 14. Bg3 {[%clk 0:02:26]}  Bg4 {[%clk 0:02:27]} 15. Qe3 {[%clk 0:02:07]}  Bxd1 {[%clk 0:02:24]} 16. Rxd1 {[%clk 0:02:08]}  Rad8 {[%clk 0:02:02]} 17. Rf1 {[%clk 0:02:05]}  Ng4 {[%clk 0:01:49]} 18. Bxd6 {[%clk 0:01:55]}  Qxd6 {[%clk 0:01:49]} 19. Qh3 {[%clk 0:01:53]}  Qd4+ {[%clk 0:01:46]} 20. Kh1 {[%clk 0:01:53]}  Nf2+ {[%clk 0:01:44]} 21. Rxf2 {[%clk 0:01:53]}  Qxf2 {[%clk 0:01:45]} 22. g3 {[%clk 0:01:47]}  Rxd3 {[%clk 0:01:27]} 23. cxd3 {[%clk 0:01:47]}  Qxb2 {[%clk 0:01:27]} 0-1


[Site "https://www.chess.com"]